fUSD/lending_fUSD_20250923
["ID","MTS","AMOUNT","RATE_DAILY","PERIOD"]
[387240709,1758664315502,-916.94,0.00025753,3]
[387240710,1758664315512,-400.0,0.00025753,3]
[387240711,1758664315523,-2186.72,0.00025753,3]
[387240712,1758664315533,-546.81,0.00025753,3]
[387240713,1758664315543,-485.45,0.00025753,3]
[387240714,1758664315554,-952.65,0.00025753,3]
[387240715,1758664315564,-643.52,0.00025753,3]
[387240716,1758664315574,-400.0,0.00025753,3]
[387240717,1758664315584,-400.0,0.00025753,3]
[387240718,1758664315594,-400.0,0.00025753,3]
[387240719,1758664315604,-1510.65,0.00025753,3]
[387240720,1758664315614,-1538.99,0.00025753,3]
[387240721,1758664315624,-400.0,0.00025753,3]
[387240722,1758664315634,-400.0,0.00025753,3]
[387240723,1758664315644,-400.0,0.00025753,3]
[387240724,1758664315654,-400.0,0.00025753,3]
[387240725,1758664315664,-767.66,0.00025753,3]
[387240726,1758664315674,-400.0,0.00025753,3]
[387240727,1758664315685,-1183.46,0.00025753,3]
[387240728,1758664315695,-1576.62,0.00025753,3]
[387240729,1758664315706,-1025.71,0.00025753,3]
[387240730,1758664315716,-1292.75,0.00025753,3]
[387240731,1758664315726,-400.0,0.00025753,3]
[387240732,1758664315736,-589.78,0.00025753,3]
[387240733,1758664315746,-400.0,0.00025753,3]
[387240734,1758664315756,-400.0,0.00025753,3]
[387240735,1758664315766,-400.0,0.00025753,3]
[387240736,1758664315776,-400.0,0.00025753,3]
[387240737,1758664315786,-400.0,0.00025753,3]
[387240738,1758664315796,-2168.52,0.00025753,3]
[387240739,1758664315807,-400.0,0.00025753,3]
[387240740,1758664315816,-400.0,0.00025753,3]
[387240741,1758664315826,-1248.87,0.00025753,3]
[387240742,1758664315836,-1438.1,0.00025753,3]
[387240743,1758664315847,-801.34,0.00025753,3]
[387240744,1758664315857,-400.0,0.00025753,3]
[387240745,1758664315867,-400.0,0.00025753,3]
[387240746,1758664315877,-400.0,0.00025753,3]
[387240747,1758664315887,-1355.06,0.00025753,3]
[387240748,1758664315898,-1989.17,0.00025753,3]
[387240749,1758664315909,-1742.92,0.00025753,3]
[387240750,1758664315919,-1035.45,0.00025753,3]
[387240751,1758664315928,-400.0,0.00025753,3]
[387240752,1758664315939,-466.56,0.00025753,3]
[387240753,1758664315950,-1515.98,0.00025753,3]
[387240754,1758664315960,-1514.01,0.00025753,3]
[387240755,1758664315970,-1785.83,0.00025753,3]
[387240756,1758664315980,-635.55,0.00025753,3]
[387240757,1758664315990,-400.0,0.00025753,3]
[387240758,1758664316000,-400.0,0.00025753,3]
[387240759,1758664316010,-835.56,0.00025753,3]
[387240760,1758664316020,-1984.29,0.00025753,3]
[387240761,1758664316030,-1716.89,0.00025753,3]
[387240762,1758664316040,-786.93,0.00025753,3]
[387240763,1758664316051,-645.64,0.00025753,3]
[387240764,1758664316061,-400.0,0.00025753,3]
[387240765,1758664316071,-400.0,0.00025753,3]
[387240766,1758664316081,-2059.55,0.00025753,3]
[387240767,1758664316091,-2306.45,0.00025753,3]
[387240768,1758664316102,-400.0,0.00025753,3]
[387240769,1758664316112,-400.0,0.00025753,3]
[387240770,1758664316122,-1545.45,0.00025753,3]
[387240771,1758664316132,-400.0,0.00025753,3]
[387240772,1758664316142,-2095.63,0.00025753,3]
[387240773,1758664316152,-400.0,0.00025753,3]
[387240774,1758664316163,-1430.02,0.00025753,3]
[387240775,1758664316173,-400.0,0.00025753,3]
[387240776,1758664316184,-400.0,0.00025753,3]
[387240777,1758664316194,-690.64,0.00025753,3]
[387240778,1758664316204,-400.0,0.00025753,3]
[387240779,1758664316215,-909.31,0.00025753,3]
[387240780,1758664316226,-400.0,0.00025753,3]
[387240781,1758664316236,-1827.73,0.00025753,3]
[387240782,1758664316246,-400.0,0.00025753,3]
[387240783,1758664316257,-400.0,0.00025753,3]
[387240784,1758664316267,-400.0,0.00025753,3]
[387240785,1758664316278,-2101.8,0.00025753,3]
[387240786,1758664316287,-400.0,0.00025753,3]
[387240787,1758664316297,-655.71,0.00025753,3]
[387240788,1758664316307,-966.9,0.00025753,3]
[387240789,1758664316316,-400.0,0.00025753,3]
[387240790,1758664316326,-400.0,0.00025753,3]
[387240791,1758664316336,-1470.41,0.00025753,3]
[387240792,1758664316345,-5585.99,0.00025753,3]
[387240793,1758664316355,-603.72,0.00025753,3]
[387240794,1758664316365,-400.0,0.00025753,3]
[387240795,1758664316375,-400.0,0.00025753,3]
[387240796,1758664316389,-1883.8,0.00025753,3]
[387240797,1758664316398,-1867.36,0.00025753,3]
[387240798,1758664316408,-1963.55,0.00025753,3]
[387240799,1758664316418,-400.0,0.00025753,3]
[387240800,1758664316430,-614.58,0.00025753,3]
[387240801,1758664316440,-400.0,0.00025753,3]
[387240802,1758664316452,-952.78,0.00025753,3]
[387240803,1758664316463,-400.0,0.00025753,3]
[387240804,1758664316473,-1560.6,0.00025753,3]
[387240805,1758664316482,-400.0,0.00025753,3]
[387240806,1758664316492,-400.0,0.00025753,3]
[387240807,1758664316503,-1953.23,0.00025753,3]
[387240808,1758664316513,-1674.22,0.00025753,3]
[387240809,1758664316523,-400.0,0.00025753,3]
[387240810,1758664316533,-1508.32,0.00025753,3]
[387240811,1758664316543,-461.9,0.00025753,3]
[387240812,1758664316554,-492.65,0.00025753,3]
[387240813,1758664316564,-400.0,0.00025753,3]
[387240814,1758664316574,-924.37,0.00025753,3]
[387240815,1758664316585,-400.0,0.00025753,3]
[387240816,1758664316596,-400.0,0.00025753,3]
[387240817,1758664316607,-1865.08,0.00025753,3]
[387240818,1758664316618,-1262.69,0.00025753,3]
[387240819,1758664316628,-400.0,0.00025753,3]
[387240820,1758664316639,-1344.24,0.00025753,3]
[387240821,1758664316650,-1502.94,0.00025753,3]
[387240822,1758664316660,-1473.52,0.00025753,3]
[387240823,1758664316670,-400.0,0.00025753,3]
[387240824,1758664316680,-400.0,0.00025753,3]
[387240825,1758664316690,-957.08,0.00025753,3]
[387240826,1758664316700,-528.66,0.00025753,3]
[387240827,1758664316711,-552.31,0.00025753,3]
[387240828,1758664316721,-400.0,0.00025753,3]
[387240829,1758664316731,-2161.43,0.00025753,3]
[387240830,1758664316741,-2128.27,0.00025753,3]
[387240831,1758664316752,-943.67,0.00025753,3]
[387240832,1758664316763,-698.14,0.00025753,3]
[387240833,1758664316773,-956.83,0.00025753,3]
[387240834,1758664316784,-400.0,0.00025753,3]
[387240835,1758664316795,-1587.02,0.00025753,3]
[387240836,1758664316808,-7304.35,0.00025753,3]
[387240837,1758664316819,-400.0,0.00025753,3]
[387240838,1758664316831,-428.71,0.00025753,3]
[387240839,1758664316842,-1854.69,0.00025753,3]
[387240840,1758664316852,-533.26,0.00025753,3]
[387240841,1758664316863,-1021.78,0.00025753,3]
[387240842,1758664316873,-400.0,0.00025753,3]
[387240843,1758664316884,-400.0,0.00025753,3]
[387240844,1758664316895,-675.91,0.00025753,3]
[387240845,1758664316905,-1334.3,0.00025753,3]
[387240846,1758664316917,-447.62,0.00025753,3]
[387240847,1758664316927,-803.81,0.00025753,3]
[387240848,1758664316937,-400.0,0.00025753,3]
[387240849,1758664316947,-2319.15,0.00025753,3]
[387240850,1758664316958,-400.0,0.00025753,3]
[387240851,1758664316968,-1143.73,0.00025753,3]
[387240852,1758664317344,-400.0,0.00025753,3]
[387240853,1758664317354,-1693.96,0.00025753,3]
[387240854,1758664317363,-400.0,0.00025753,3]
[387240855,1758664317372,-808.53,0.00025753,3]
[387240856,1758664317384,-1798.02,0.00025753,3]
[387240857,1758664317393,-400.0,0.00025753,3]
[387240858,1758664317402,-400.0,0.00025753,3]
[387240859,1758664317412,-1265.14,0.00025753,3]
[387240860,1758664317423,-400.0,0.00025753,3]
[387240861,1758664317433,-493.9,0.00025753,3]
[387240862,1758664317443,-1501.23,0.00025753,3]
[387240863,1758664317453,-528.22,0.00025753,3]
[387240864,1758664317462,-400.0,0.00025753,3]
[387240865,1758664317472,-480.24,0.00025753,3]
[387240866,1758664317481,-400.0,0.00025753,3]
[387240867,1758664317491,-1303.69,0.00025753,3]
[387240868,1758664317500,-810.26,0.00025753,3]
[387240869,1758664317509,-400.0,0.00025753,3]
[387240870,1758664317518,-400.0,0.00025753,3]
[387240871,1758664317528,-1157.48,0.00025753,3]
[387240872,1758664317538,-400.0,0.00025753,3]
[387240873,1758664317547,-676.36,0.00025753,3]
[387240874,1758664317556,-923.87,0.00025753,3]
[387240875,1758664317566,-1229.06,0.00025753,3]
[387240876,1758664317575,-865.69,0.00025753,3]
[387240877,1758664317584,-645.83,0.00025753,3]
[387240878,1758664317594,-1798.6,0.00025753,3]
[387240879,1758664317604,-549.42,0.00025753,3]
[387240880,1758664317613,-400.0,0.00025753,3]
[387240881,1758664317623,-404.28,0.00025753,3]
[387240882,1758664317632,-1589.65,0.00025753,3]
[387240883,1758664317642,-559.17,0.00025753,3]
[387240884,1758664317652,-1587.3,0.00025753,3]
[387240885,1758664317662,-1163.2,0.00025753,3]
[387240886,1758664317671,-536.97,0.00025753,3]
[387240887,1758664317681,-400.0,0.00025753,3]
[387240888,1758664317691,-400.0,0.00025753,3]
[387240889,1758664317700,-400.0,0.00025753,2]
[387240890,1758664317710,-2080.14,0.00025753,3]
[387240891,1758664317719,-529.51,0.00025753,3]
[387240892,1758664317728,-931.36,0.00025753,3]
[387240893,1758664317737,-1619.96,0.00025753,3]
[387240894,1758664317747,-400.0,0.00025753,3]
[387240895,1758664317756,-13739.2,0.00025753,3]
[387240896,1758664317765,-400.0,0.00025753,3]
[387240897,1758664317774,-400.0,0.00025753,3]
[387240898,1758664317784,-948.64,0.00025753,3]
[387240899,1758664317794,-1551.51,0.00025753,3]
[387240900,1758664317804,-1871.37,0.00025753,3]
[387240901,1758664317814,-400.0,0.00025753,3]
[387240902,1758664317823,-618.32,0.00025753,3]
[387240903,1758664317833,-1302.85,0.00025753,3]
[387240904,1758664317843,-400.0,0.00025753,3]
[387240905,1758664317853,-400.0,0.00025753,3]
[387240906,1758664317864,-458.91,0.00025753,3]
[387240907,1758664317874,-1080.98,0.00025753,3]
[387240908,1758664317884,-657.58,0.00025753,3]
[387240909,1758664317895,-400.0,0.00025753,3]
[387240910,1758664317905,-400.0,0.00025753,3]
[387240911,1758664317914,-1848.91,0.00025753,3]
[387240912,1758664317923,-1506.02,0.00025753,3]
[387240913,1758664317932,-400.0,0.00025753,3]
[387240914,1758664317942,-477.74,0.00025753,3]
[387240915,1758664317951,-514.97,0.00025753,3]
[387240916,1758664317960,-400.0,0.00025753,3]
[387240917,1758664317969,-400.0,0.00025753,3]
[387240918,1758664317978,-400.0,0.00025753,3]
[387240919,1758664317987,-400.0,0.00025753,3]
[387240920,1758664317997,-1395.95,0.00025753,3]
[387240921,1758664318006,-400.0,0.00025753,3]
[387240922,1758664318016,-400.0,0.00025753,3]
[387240923,1758664318025,-1575.42,0.00025753,3]
[387240924,1758664318034,-477.96200976,0.00025753,3]
[387240925,1758664318043,-1347.82,0.00025753,3]
[387240926,1758664318052,-400.0,0.00025753,3]
[387240927,1758664318062,-1495.51,0.00025753,3]
[387240928,1758664318074,-525.32,0.00025753,3]
[387240929,1758664318085,-1907.27,0.00025753,3]
[387240930,1758664318096,-400.0,0.00025753,3]
[387240931,1758664318105,-1023.51,0.00025753,3]
[387240932,1758664318115,-400.0,0.00025753,3]
[387240933,1758664318126,-432.69,0.00025753,3]
[387240934,1758664318135,-1903.53,0.00025753,3]
[387240935,1758664318146,-1351.02,0.00025753,3]
[387240936,1758664318158,-702.83,0.00025753,3]
[387240937,1758664318168,-400.0,0.00025753,3]
[387240938,1758664318177,-548.79,0.00025753,3]
[387240939,1758664318186,-880.27,0.00025753,3]
[387240940,1758664318195,-786.35,0.00025753,3]
[387240941,1758664318205,-400.0,0.00025753,3]
[387240942,1758664318214,-451.0,0.00025753,3]
[387240943,1758664318224,-400.0,0.00025753,3]
[387240944,1758664318233,-400.0,0.00025753,3]
[387240945,1758664318242,-2096.52,0.00025753,3]
[387240946,1758664318252,-1019.97,0.00025753,3]
[387240947,1758664318261,-400.0,0.00025753,3]
[387240948,1758664318272,-400.0,0.00025753,3]
[387240949,1758664318281,-475.27,0.00025753,3]
[387240950,1758664318291,-1844.62,0.00025753,3]
[387240951,1758664318303,-696.03,0.00025753,3]
[387240952,1758664318312,-400.0,0.00025753,3]
[387240953,1758664318323,-419.83,0.00025753,3]
[387240954,1758664318335,-601.48,0.00025753,3]
[387240955,1758664318345,-529.1,0.00025753,3]
[387240956,1758664318355,-1931.45,0.00025753,3]
[387240957,1758664318364,-2252.15,0.00025753,3]
[387240958,1758664318373,-400.0,0.00025753,3]
[387240959,1758664318385,-500.0,0.00025753,2]
[387240960,1758664318394,-450.0,0.00025753,3]
[387240961,1758664318404,-400.0,0.00025753,3]
[387240962,1758664318414,-536.36,0.00025753,3]
[387240963,1758664318425,-516.75,0.00025753,3]
[387240964,1758664318434,-400.0,0.00025753,3]
[387240965,1758664318443,-400.0,0.00025753,3]
[387240966,1758664318454,-2098.36,0.00025753,3]
[387240967,1758664318463,-169.18057786,0.00025753,3]
[387240968,1758664318473,-620.93,0.00025753,3]
[387240969,1758664318483,-2161.44,0.00025753,3]
[387240970,1758664318494,-3658.05,0.00025753,3]
[387240971,1758664318506,-803.72,0.00025753,3]
[387240972,1758664318518,-400.0,0.00025753,3]
[387240973,1758664318529,-400.0,0.00025753,3]
[387240974,1758664318539,-1607.31,0.00025753,3]
[387240975,1758664318550,-1550.42,0.00025753,3]
[387240976,1758664318560,-1788.33,0.00025753,3]
[387240977,1758664318570,-998.12,0.00025753,3]
[387240978,1758664318581,-510.18,0.00025753,3]
[387240979,1758664318594,-1221.01,0.00025753,3]
[387240980,1758664318604,-1421.09,0.00025753,3]
[387240981,1758664318614,-1581.33,0.00025753,3]
[387240982,1758664318623,-1796.87,0.00025753,3]
[387240983,1758664318633,-432.88236898,0.00025753,3]
[387240984,1758664318643,-400.0,0.00025753,3]
[387240985,1758664318653,-515.25,0.00025753,3]
[387240986,1758664318662,-400.0,0.00025753,3]
[387240987,1758664318673,-1366.95,0.00025753,3]
[387240988,1758664318682,-439.17996195,0.00025753,3]
[387240989,1758664318691,-400.0,0.00025753,3]
[387240990,1758664318701,-400.0,0.00025753,3]
[387240991,1758664318710,-1983.1,0.00025753,3]
[387240992,1758664318719,-400.0,0.00025753,3]
[387240993,1758664318729,-566.08,0.00025753,3]
[387240994,1758664318738,-400.0,0.00025753,3]
[387240995,1758664318748,-1644.62,0.00025753,3]
[387240996,1758664318758,-703.73,0.00025753,3]
[387240997,1758664318767,-712.53,0.00025753,3]
[387240998,1758664318777,-421.65,0.00025753,3]
[387240999,1758664318786,-400.0,0.00025753,3]
[387241000,1758664318795,-838.91,0.00025753,3]
[387241001,1758664318805,-400.0,0.00025753,3]
[387241002,1758664318814,-400.0,0.00025753,3]
[387241003,1758664318824,-1691.7,0.00025753,3]
[387241004,1758664318833,-2924.19,0.00025753,3]
[387241005,1758664318843,-2088.64,0.00025753,3]
[387241006,1758664318852,-1746.85,0.00025753,3]
[387241007,1758664318862,-400.0,0.00025753,3]
[387241008,1758664318872,-586.14,0.00025753,3]
[387241009,1758664318882,-400.0,0.00025753,3]
[387241010,1758664318891,-400.0,0.00025753,3]
[387241011,1758664318901,-1208.42,0.00025753,3]
[387241012,1758664318911,-1005.85,0.00025753,3]
[387241013,1758664318920,-706.04,0.00025753,3]
[387241014,1758664318930,-12997.44,0.00025753,3]
[387241015,1758664318940,-2130.52,0.00025753,3]
[387241016,1758664318949,-400.0,0.00025753,3]
[387241017,1758664318959,-400.0,0.00025753,3]
[387241018,1758664318968,-1530.19,0.00025753,3]
[387241019,1758664318978,-1462.57,0.00025753,3]
[387241020,1758664318987,-400.0,0.00025753,3]
[387241021,1758664318997,-400.0,0.00025753,3]
[387241022,1758664319006,-7446.15,0.00025753,3]
[387241023,1758664319015,-621.18,0.00025753,3]
[387241024,1758664319024,-1544.2,0.00025753,3]
[387241025,1758664319033,-644.91,0.00025753,3]
[387241026,1758664319043,-613.5,0.00025753,3]
[387241027,1758664319052,-644.94,0.00025753,3]
[387241028,1758664319062,-400.0,0.00025753,3]
[387241029,1758664319071,-323.16,0.00025753,3]
[387241030,1758664319080,-964.09,0.00025753,3]
[387241031,1758664319090,-924.07,0.00025753,3]
[387241032,1758664319099,-413.72,0.00025753,3]
[387241033,1758664319108,-1583.89,0.00025753,3]
[387241034,1758664319118,-300.0,0.00025753,3]
[387241035,1758664319127,-1218.93,0.00025753,3]
[387241036,1758664319137,-472.05,0.00025753,3]
[387241037,1758664319146,-525.7,0.00025753,3]
[387241038,1758664319155,-400.0,0.00025753,3]
[387241039,1758664319165,-431.76,0.00025753,3]
[387241040,1758664319174,-501.11,0.00025753,3]
[387241041,1758664319183,-523.06,0.00025753,3]
[387241042,1758664319193,-2926.65,0.00025753,3]
[387241043,1758664319202,-400.0,0.00025753,3]
[387241044,1758664319211,-684.39,0.00025753,3]
[387241045,1758664319220,-400.0,0.00025753,3]
[387241046,1758664319230,-490.24,0.00025753,3]
[387241047,1758664319239,-1089.09,0.00025753,3]
[387241048,1758664319249,-400.0,0.00025753,3]
[387241049,1758664319258,-10315.68,0.00025753,3]
[387241050,1758664319268,-260.04810484,0.00025753,3]
[387241051,1758664319279,-453.77,0.00025753,3]
[387241052,1758664319289,-564.83,0.00025753,3]
[387241053,1758664319300,-814.85,0.00025753,3]
[387241054,1758664319309,-873.79,0.00025753,3]
[387241055,1758664319319,-400.0,0.00025753,3]
[387241056,1758664319330,-548.44,0.00025753,3]
[387241057,1758664319340,-400.0,0.00025753,3]
[387241058,1758664319349,-1681.09,0.00025753,3]
[387241059,1758664319359,-478.24,0.00025753,3]
[387241060,1758664319367,-1874.55,0.00025753,3]
[387241061,1758664319377,-1081.32,0.00025753,3]
[387241062,1758664319390,-400.0,0.00025753,3]
[387241063,1758664319399,-400.0,0.00025753,3]
[387241064,1758664319409,-710.95,0.00025753,3]
[387241065,1758664319419,-852.97,0.00025753,3]
[387241066,1758664319429,-400.0,0.00025753,3]
[387241067,1758664319439,-400.0,0.00025753,3]
[387241068,1758664319448,-895.27,0.00025753,3]
[387241069,1758664319457,-532.39,0.00025753,3]
[387241070,1758664319467,-400.0,0.00025753,3]
[387241071,1758664319477,-1448.24,0.00025753,3]
[387241072,1758664319486,-1804.22,0.00025753,3]
[387241073,1758664319495,-400.0,0.00025753,3]
[387241074,1758664319504,-400.0,0.00025753,3]
[387241075,1758664319514,-677.14,0.00025753,3]
[387241076,1758664319523,-2056.2,0.00025753,3]
[387241077,1758664319532,-400.0,0.00025753,3]
[387241078,1758664319541,-1527.7,0.00025753,3]
[387241079,1758664319550,-443.95,0.00025753,3]
[387241080,1758664319559,-1886.51,0.00025753,3]
[387241081,1758664319568,-1803.32,0.00025753,3]
[387241082,1758664319577,-1120.28,0.00025753,3]
[387241083,1758664319586,-400.0,0.00025753,3]
[387241084,1758664319595,-400.0,0.00025753,3]
[387241085,1758664319605,-1036.13,0.00025753,3]
[387241086,1758664319614,-517.83,0.00025753,3]
[387241087,1758664319624,-482.02,0.00025753,3]
[387241088,1758664319633,-2362.16,0.00025753,3]
[387241089,1758664319643,-400.0,0.00025753,3]
[387241090,1758664319652,-400.0,0.00025753,3]
[387241091,1758664319662,-524.16,0.00025753,3]
[387241092,1758664319780,-3343.32,0.00025753,3]
[387241093,1758664319789,-1564.43,0.00025753,3]
[387241094,1758664319799,-400.0,0.00025753,3]
[387241095,1758664319808,-2055.82,0.00025753,3]
[387241096,1758664319819,-400.0,0.00025753,3]
[387241097,1758664319828,-485.4,0.00025753,3]
[387241098,1758664319838,-2920.55,0.00025753,3]
[387241099,1758664319848,-1774.73,0.00025753,3]
[387241100,1758664319858,-542.94,0.00025753,3]
[387241101,1758664319867,-400.0,0.00025753,3]
[387241102,1758664319876,-2377.65,0.00025753,3]
[387241103,1758664319885,-400.0,0.00025753,3]
[387241104,1758664319895,-400.0,0.00025753,3]
[387241105,1758664319904,-400.0,0.00025753,3]
[387241106,1758664319914,-2733.93,0.00025753,3]
[387241107,1758664319924,-4398.6,0.00025753,3]
[387241108,1758664319933,-2206.4,0.00025753,3]
[387241109,1758664319942,-1866.28,0.00025753,3]
[387241110,1758664319951,-400.0,0.00025753,3]
[387241111,1758664319961,-491.17,0.00025753,3]
[387241112,1758664319970,-1493.5,0.00025753,3]
[387241113,1758664319979,-441.23,0.00025753,3]
[387241114,1758664319989,-872.02,0.00025753,3]
[387241115,1758664319998,-400.0,0.00025753,3]
[387241116,1758664320008,-566.5,0.00025753,3]
[387241117,1758664320017,-400.0,0.00025753,3]
[387241118,1758664320028,-841.18,0.00025753,3]
[387241119,1758664320037,-432.90967746,0.00025753,3]
[387241120,1758664320047,-1970.71,0.00025753,3]
[387241121,1758664320057,-400.0,0.00025753,3]
[387241122,1758664320068,-1182.93,0.00025753,3]
[387241123,1758664320078,-3675.81,0.00025753,3]
[387241124,1758664320087,-469.2,0.00025753,3]
[387241125,1758664320097,-400.0,0.00025753,3]
[387241126,1758664320107,-660.51,0.00025753,3]
[387241127,1758664320117,-400.0,0.00025753,3]
[387241128,1758664320127,-1923.86,0.00025753,3]
[387241129,1758664320137,-1466.11,0.00025753,3]
[387241130,1758664320147,-535.19,0.00025753,3]
[387241131,1758664320156,-515.64,0.00025753,3]
[387241132,1758664320166,-770.57,0.00025753,3]
[387241133,1758664320175,-788.86,0.00025753,3]
[387241134,1758664320185,-400.0,0.00025753,3]
[387241135,1758664320195,-493.51,0.00025753,3]
[387241136,1758664320205,-12445.83,0.00025753,3]
[387241137,1758664320215,-3103.88,0.00025753,3]
[387241138,1758664320224,-681.58,0.00025753,3]
[387241139,1758664320234,-400.0,0.00025753,3]
[387241140,1758664320243,-400.0,0.00025753,3]
[387241141,1758664320253,-400.0,0.00025753,3]
[387241142,1758664320263,-1593.87,0.00025753,3]
[387241143,1758664320273,-2705.96,0.00025753,3]
[387241144,1758664320284,-1801.89,0.00025753,3]
[387241145,1758664320294,-1375.02,0.00025753,3]
[387241146,1758664320304,-1657.6,0.00025753,3]
[387241147,1758664320314,-4394.25,0.00025753,3]
[387241148,1758664320323,-400.0,0.00025753,3]
[387241149,1758664320334,-498.24,0.00025753,3]
[387241150,1758664320344,-1354.9,0.00025753,3]
[387241151,1758664320354,-477.48,0.00025753,3]
[387241152,1758664320364,-483.59,0.00025753,3]
[387241153,1758664320373,-400.0,0.00025753,3]
[387241154,1758664320387,-2718.14,0.00025753,3]
[387241155,1758664320397,-400.0,0.00025753,3]
[387241156,1758664320407,-1525.42,0.00025753,3]
[387241157,1758664320416,-506.66,0.00025753,3]
[387241158,1758664320426,-400.0,0.00025753,3]
[387241159,1758664320436,-400.0,0.00025753,3]
[387241160,1758664320446,-616.12,0.00025753,3]
[387241161,1758664320457,-400.0,0.00025753,3]
[387241162,1758664320468,-537.74,0.00025753,3]
[387241163,1758664320478,-8925.42,0.00025753,3]
[387241164,1758664320488,-1080.71,0.00025753,3]
[387241165,1758664320497,-1946.95,0.00025753,3]
[387241166,1758664320507,-1594.41,0.00025753,3]
[387241167,1758664320516,-693.58,0.00025753,3]
[387241168,1758664320526,-3295.49,0.00025753,3]
[387241169,1758664320536,-778.13,0.00025753,3]
[387241170,1758664320545,-1328.48,0.00025753,3]
[387241171,1758664320555,-6607.03,0.00025753,3]
[387241172,1758664320565,-400.0,0.00025753,3]
[387241173,1758664320575,-1718.13,0.00025753,3]
[387241174,1758664320584,-1594.83,0.00025753,3]
[387241175,1758664320594,-487.88,0.00025753,3]
[387241176,1758664320604,-2770.64,0.00025753,3]
[387241177,1758664320614,-720.33,0.00025753,3]
[387241178,1758664320624,-1145.93,0.00025753,3]
[387241179,1758664320634,-3077.98,0.00025753,3]
[387241180,1758664320643,-1583.84,0.00025753,3]
[387241181,1758664320653,-560.56,0.00025753,3]
[387241182,1758664320663,-2609.15,0.00025753,3]
[387241183,1758664320673,-400.0,0.00025753,3]
[387241184,1758664320683,-1532.57,0.00025753,3]
[387241185,1758664320692,-1601.89,0.00025753,3]
[387241186,1758664320702,-470.81,0.00025753,3]
[387241187,1758664320711,-736.9,0.00025753,3]
[387241188,1758664320720,-682.28,0.00025753,3]
[387241189,1758664320729,-473.85,0.00025753,3]
[387241190,1758664320739,-400.0,0.00025753,3]
[387241191,1758664320748,-444.2,0.00025753,3]
[387241192,1758664320757,-1854.54,0.00025753,3]
[387241193,1758664320767,-2011.79,0.00025753,3]
[387241194,1758664320776,-1424.75,0.00025753,3]
[387241195,1758664320785,-400.0,0.00025753,3]
[387241196,1758664320795,-667.22,0.00025753,3]
[387241197,1758664320804,-7260.11,0.00025753,3]
[387241198,1758664320814,-400.0,0.00025753,3]
[387241199,1758664320825,-400.0,0.00025753,3]
[387241200,1758664320836,-814.88,0.00025753,3]
[387241201,1758664320846,-1011.39,0.00025753,3]
[387241202,1758664320855,-746.48,0.00025753,3]
[387241203,1758664320866,-2063.59,0.00025753,3]
[387241204,1758664320876,-1086.66,0.00025753,3]
[387241205,1758664320885,-821.38,0.00025753,3]
[387241206,1758664320895,-418.02736998,0.00025753,3]
[387241207,1758664320904,-1885.78,0.00025753,3]
[387241208,1758664320914,-1320.39,0.00025753,3]